fUSD/lending_fUSD_20240612
["ID","MTS","AMOUNT","RATE_DAILY","PERIOD"]
[329221182,1718187047644,-184.36218047,0.00019661,2]
[329221183,1718187047655,-224.64782425,0.00019661,2]
[329221186,1718187047682,-500.0,0.00019524,2]
[329221188,1718187047693,-407.63217575,0.00019661,2]
[329221190,1718187047703,-868.93,0.00019661,2]
[329221192,1718187047714,-347.37597251,0.00019661,2]
[329221194,1718187047728,-152.62402749,0.00019661,2]
[329221197,1718187047738,-528.64,0.00019661,2]
[329221199,1718187047751,-794.06239839,0.00019661,2]
[329221201,1718187047768,-89.03760161,0.00019661,2]
[329221203,1718187047778,-500.0,0.00019661,2]
[329221205,1718187047791,-500.0,0.00019661,2]
[329221207,1718187047801,-500.0,0.00019661,2]
[329221209,1718187047811,-18.56003886,0.00019661,2]
[329221211,1718187047823,-481.43996114,0.00019661,2]
[329221213,1718187047834,-500.0,0.00019661,2]
[329221215,1718187047845,-775.01,0.00019661,2]
[329221217,1718187047855,-500.0,0.00019661,2]
[329221219,1718187047866,-500.0,0.00019661,2]
[329221221,1718187047876,-500.0,0.00019661,2]
[329221223,1718187047887,-500.0,0.00019661,2]
[329221225,1718187047897,-500.0,0.00019661,2]
[329221227,1718187047907,-1482.55,0.00019661,2]
[329221229,1718187047918,-588.15,0.00019661,2]
[329221231,1718187047928,-834.47,0.00019661,2]
[329221233,1718187047939,-1084.31,0.00019661,2]
[329221235,1718187047949,-837.88,0.00019661,2]
[329221237,1718187047960,-823.62,0.00019661,2]
[329221239,1718187047971,-573.1,0.00019661,2]
[329221241,1718187047981,-1128.63,0.00019661,2]
[329221243,1718187047992,-500.0,0.00019661,2]
[329221245,1718187048002,-674.47,0.00019661,2]
[329221247,1718187048014,-500.0,0.00019661,2]
[329221249,1718187048024,-621.82,0.00019661,2]
[329221251,1718187048035,-739.01,0.00019661,2]
[329221253,1718187048045,-845.15,0.00019661,2]
[329221255,1718187048056,-1541.47,0.00019661,2]
[329221256,1718187048066,-500.0,0.00019661,2]
[329221258,1718187048076,-756.36,0.00019661,2]
[329221260,1718187048087,-500.0,0.00019661,2]
[329221263,1718187048098,-1566.19,0.00019661,2]
[329221265,1718187048111,-500.0,0.00019661,2]
[329221267,1718187048125,-609.08,0.00019661,2]
[329221269,1718187048137,-1703.55,0.00019661,2]
[329221271,1718187048149,-500.0,0.00019661,2]
[329221273,1718187048160,-2896.96,0.00019661,2]
[329221275,1718187048172,-849.0,0.00019661,2]
[329221277,1718187048183,-500.0,0.00019661,2]
[329221279,1718187048195,-500.0,0.00019661,2]
[329221282,1718187048216,-500.0,0.00019661,2]
[329221284,1718187048227,-500.0,0.00019661,2]
[329221286,1718187048237,-500.0,0.00019661,2]
[329221287,1718187048248,-141.42291853,0.00019661,2]
[329221290,1718187048262,-358.57708147,0.00019661,2]
[329221291,1718187048272,-112.31768669,0.00019661,2]
[329221294,1718187048285,-387.68231331,0.00019661,2]
[329221296,1718187048295,-1066.46,0.00019661,2]
[329221297,1718187048307,-3736.27,0.00019661,2]
[329221299,1718187048317,-500.0,0.00019661,2]
[329221301,1718187048328,-500.0,0.00019661,2]
[329221303,1718187048338,-500.0,0.00019662,2]
[329221305,1718187048348,-500.0,0.00019662,2]
[329221307,1718187048359,-500.0,0.00019662,2]
[329221309,1718187048370,-500.0,0.00019662,2]
[329221311,1718187048380,-500.0,0.00019662,2]
[329221313,1718187048391,-500.0,0.00019662,2]
[329221315,1718187048402,-270.37343006,0.00019662,2]
[329221317,1718187048413,-500.0,0.00019662,2]
[329221319,1718187048424,-500.0,0.00019662,2]
[329221321,1718187048434,-500.0,0.00019662,2]
[329221323,1718187048445,-1016.58,0.00019662,2]
[329221325,1718187048455,-500.0,0.00019662,2]
[329221327,1718187048465,-500.0,0.00019662,2]
[329221329,1718187048476,-1384.72010445,0.00019662,2]
[329221331,1718187048489,-3.00989555,0.00019662,2]
[329221333,1718187048500,-500.0,0.00019662,2]
[329221336,1718187048512,-500.0,0.00019662,2]
[329221337,1718187048522,-713.65,0.00019662,2]
[329221340,1718187048533,-500.0,0.00019662,2]
[329221342,1718187048548,-49.16422269,0.00019662,2]
[329221343,1718187048574,-450.83577731,0.00019662,2]
[329221345,1718187048585,-142.84022072,0.00019662,2]
[329221350,1718187048622,-500.0,0.00019661,2]
[329221352,1718187048633,-500.0,0.00019661,2]
[329221353,1718187048643,-357.15977928,0.00019662,2]
[329221355,1718187048654,-500.0,0.00019662,2]
[329221357,1718187048664,-500.0,0.00019662,2]
[329221359,1718187048674,-500.0,0.00019662,2]
[329221361,1718187048684,-500.0,0.00019662,2]
[329221363,1718187048695,-500.0,0.00019662,2]
[329221365,1718187048705,-500.0,0.00019662,2]
[329221367,1718187048715,-500.0,0.00019662,2]
[329221369,1718187048724,-500.0,0.00019662,2]
[329221371,1718187048735,-500.0,0.00019662,2]
[329221373,1718187048745,-427.15708435,0.00019662,2]
[329221375,1718187048754,-582.58,0.00019662,2]
[329221377,1718187048765,-586.70367198,0.00019662,2]
[329221379,1718187048775,-500.0,0.00019662,2]
[329221381,1718187048785,-500.0,0.00019662,2]
[329221383,1718187048795,-500.0,0.00019662,2]
[329221385,1718187048805,-619.44,0.00019662,2]
[329221387,1718187048825,-500.0,0.00019662,2]
[329221389,1718187048835,-500.0,0.00019662,2]
[329221391,1718187048845,-500.0,0.00019662,2]
[329221393,1718187048855,-500.0,0.00019662,2]
[329221395,1718187048865,-500.0,0.00019662,2]
[329221397,1718187048878,-1300.65,0.00019662,2]
[329221399,1718187048888,-651.51,0.00019662,2]
[329221401,1718187048901,-500.0,0.00019662,2]
[329221403,1718187048910,-500.0,0.00019662,2]
[329221405,1718187048920,-616.95,0.00019662,2]
[329221407,1718187048931,-500.0,0.00019662,2]
[329221409,1718187048941,-500.0,0.00019662,2]
[329221411,1718187048952,-500.0,0.00019662,2]
[329221413,1718187048962,-572.52,0.00019662,2]
[329221415,1718187048972,-500.0,0.00019662,2]
[329221417,1718187048983,-500.0,0.00019662,2]
[329221419,1718187048993,-500.0,0.00019662,2]
[329221420,1718187049004,-1072.58,0.00019662,2]
[329221422,1718187049016,-500.0,0.00019662,2]
[329221425,1718187049027,-500.0,0.00019662,2]
[329221426,1718187049038,-528.54,0.00019662,2]
[329221428,1718187049048,-1923.73,0.00019662,2]
[329221431,1718187049060,-500.0,0.00019662,2]
[329221432,1718187049071,-1548.5,0.00019662,2]
[329221434,1718187049081,-500.0,0.00019662,2]
[329221436,1718187049091,-1323.71,0.00019662,2]
[329221438,1718187049101,-500.0,0.00019662,2]
[329221440,1718187049112,-676.57,0.00019662,2]
[329221442,1718187049122,-500.0,0.00019662,2]
[329221444,1718187049133,-1539.52,0.00019662,2]
[329221446,1718187049144,-500.0,0.00019662,2]
[329221448,1718187049155,-500.0,0.00019662,2]
[329221450,1718187049166,-623.51,0.00019662,2]
[329221452,1718187049176,-500.0,0.00019662,2]
[329221454,1718187049186,-500.0,0.00019662,2]
[329221456,1718187049197,-3218.26,0.00019662,2]
[329221458,1718187049208,-970.17,0.00019662,2]
[329221460,1718187049220,-500.0,0.00019662,2]
[329221462,1718187049230,-500.0,0.00019662,2]
[329221464,1718187049240,-500.0,0.00019662,2]
[329221466,1718187049251,-873.42,0.00019662,2]
[329221468,1718187049263,-506.2,0.00019662,2]
[329221470,1718187049273,-540.75,0.00019662,2]
[329221472,1718187049284,-500.0,0.00019662,2]
[329221474,1718187049295,-500.0,0.00019662,2]
[329221476,1718187049305,-2568.5,0.00019662,2]
[329221478,1718187049316,-629.19036839,0.00019662,2]
[329221480,1718187049326,-523.32,0.00019662,2]
[329221482,1718187049337,-1565.07,0.00019662,2]
[329221484,1718187049347,-1272.8,0.00019662,2]
[329221486,1718187049360,-500.0,0.00019662,2]
[329221488,1718187049371,-500.0,0.00019662,2]
[329221490,1718187049381,-1493.24,0.00019662,2]
[329221492,1718187049391,-150.357,0.00019677,2]
[329221494,1718187049402,-500.0,0.00019726,2]
[329221496,1718187049412,-500.0,0.00019726,2]
[329221498,1718187049422,-250.0,0.00019726,2]
[329221499,1718187049433,-595.34391944,0.00019726,2]
[329221500,1718187049443,-1123.87,0.00019726,2]
[329221501,1718187049453,-500.0,0.00019726,2]
[329221502,1718187049463,-500.0,0.00019726,2]
[329221503,1718187049473,-500.0,0.00019726,2]
[329221504,1718187049483,-500.0,0.00019726,2]
[329221505,1718187049493,-615.69,0.00019726,2]
[329221506,1718187049503,-500.0,0.00019726,2]
[329221507,1718187049514,-383.8557262,0.00019726,2]
[329221508,1718187049525,-500.0,0.00019726,2]
[329221509,1718187049535,-500.0,0.00019726,2]
[329221510,1718187049549,-500.0,0.00019726,2]
[329221511,1718187049583,-564.05,0.00019726,2]
[329221512,1718187049594,-500.0,0.00019726,2]
[329221514,1718187049604,-500.0,0.00019726,2]
[329221516,1718187049615,-500.0,0.00019726,2]
[329221518,1718187049628,-500.0,0.00019726,2]
[329221520,1718187049639,-500.0,0.00019726,2]
[329221522,1718187049650,-500.0,0.00019726,2]
[329221524,1718187049661,-500.0,0.00019726,2]
[329221526,1718187049672,-500.0,0.00019726,2]
[329221528,1718187049683,-500.0,0.00019726,2]
[329221530,1718187049693,-500.0,0.00019726,2]
[329221532,1718187049704,-500.0,0.00019726,2]
[329221534,1718187049714,-150.357,0.00019766,2]
[329221536,1718187049725,-200.0,0.00019772,2]
[329221538,1718187049735,-500.0,0.00019772,2]
[329221540,1718187049746,-200.0,0.00019772,2]
[329221542,1718187049757,-553.07,0.00019798,2]
[329221544,1718187049768,-500.0,0.00019798,2]
[329221546,1718187049778,-232.59803253,0.00019798,2]
[329221566,1718187050004,-267.40196747,0.00019798,2]
[329221568,1718187050017,-9.44403253,0.00019798,2]
[329221570,1718187050030,-490.55596747,0.00019798,2]
[329221572,1718187050043,-1611.69,0.00019798,2]
[329221574,1718187050054,-632.28,0.00019798,2]
[329221576,1718187050064,-868.93,0.00019798,2]
[329221578,1718187050074,-500.0,0.00019798,2]
[329221580,1718187050086,-528.64,0.00019798,2]
[329221582,1718187050096,-883.1,0.00019798,2]
[329221584,1718187050106,-500.0,0.00019798,2]
[329221585,1718187050117,-372.52664355,0.00019798,2]
[329221613,1718187050395,-0.31555754,0.00019798,2]
[329221634,1718187050651,-500.0,0.0001925,2]
[329221636,1718187050662,-500.0,0.00019251,2]
[329221638,1718187050672,-466.79589,0.00019387,2]
[329221640,1718187050686,-33.20411,0.00019387,2]
[329221642,1718187050696,-500.0,0.00019388,2]
[329221644,1718187050706,-500.0,0.00019524,2]
[329221646,1718187050717,-500.0,0.00019661,2]
[329221648,1718187050728,-127.15779891,0.00019798,2]
[329221650,1718187050740,-482.33435598,0.00019798,2]
[329221652,1718187050751,-500.0,0.00019798,2]
[329221654,1718187050764,-500.0,0.00019798,2]
[329221656,1718187050775,-775.01,0.00019798,2]
[329221658,1718187050786,-500.0,0.00019798,2]
[329221660,1718187050797,-287.89094194,0.00019798,2]
[329221668,1718187050873,-232.94,0.00019525,2]
[329221670,1718187050884,-84.03220014,0.00019798,2]
[329221672,1718187050897,-128.07685792,0.00019798,2]
[329221674,1718187050908,-500.0,0.00019798,2]
[329221676,1718187050920,-500.0,0.00019798,2]
[329221678,1718187050930,-500.0,0.00019798,2]
[329221680,1718187050941,-1482.55,0.00019798,2]
[329221682,1718187050952,-588.15,0.00019798,2]
[329221684,1718187050962,-834.47,0.00019798,2]
[329221686,1718187050972,-1084.31,0.00019798,2]
[329221688,1718187050984,-837.88,0.00019798,2]
[329221690,1718187050994,-823.62,0.00019798,2]
[329221692,1718187051005,-573.1,0.00019798,2]
[329221694,1718187051018,-1128.63,0.00019798,2]
[329221696,1718187051028,-500.0,0.00019798,2]
[329221698,1718187051039,-674.47,0.00019798,2]
[329221700,1718187051050,-500.0,0.00019798,2]
[329221702,1718187051061,-621.82,0.00019798,2]
[329221704,1718187051071,-739.01,0.00019798,2]
[329221706,1718187051081,-845.15,0.00019798,2]
[329221709,1718187051095,-1541.47,0.00019798,2]
[329221711,1718187051105,-500.0,0.00019798,2]
[329221713,1718187051116,-756.36,0.00019798,2]
[329221715,1718187051126,-500.0,0.00019798,2]
[329221717,1718187051136,-1566.19,0.00019798,2]
[329221718,1718187051148,-442.50277677,0.00019798,2]
[329221721,1718187051160,-609.08,0.00019798,2]
[329221723,1718187051172,-1703.55,0.00019798,2]
[329221725,1718187051182,-500.0,0.00019798,2]
[329221727,1718187051193,-2896.96,0.00019798,2]
[329221729,1718187051204,-849.0,0.00019798,2]
[329221731,1718187051215,-500.0,0.00019798,2]
[329221733,1718187051226,-500.0,0.00019798,2]
[329221735,1718187051237,-500.0,0.00019798,2]
[329221737,1718187051249,-500.0,0.00019798,2]
[329221739,1718187051262,-500.0,0.00019798,2]
[329221741,1718187051273,-500.0,0.00019798,2]
[329221743,1718187051284,-500.0,0.00019798,2]
[329221745,1718187051295,-1066.46,0.00019798,2]
[329221747,1718187051306,-3736.27,0.00019798,2]
[329221748,1718187051317,-500.0,0.00019798,2]
[329221751,1718187051328,-423.66245871,0.00019798,2]
[329221753,1718187051342,-76.33754129,0.00019798,2]
[329221755,1718187051352,-500.0,0.00019798,2]
[329221757,1718187051363,-500.0,0.00019798,2]
[329221759,1718187051374,-500.0,0.00019798,2]
[329221761,1718187051386,-500.0,0.00019799,2]
[329221763,1718187051397,-500.0,0.00019799,2]
[329221765,1718187051409,-500.0,0.00019799,2]
[329221767,1718187051420,-500.0,0.00019799,2]
[329221769,1718187051432,-500.0,0.00019799,2]
[329221771,1718187051443,-276.77357438,0.00019799,2]
[329221773,1718187051454,-500.0,0.00019799,2]
[329221775,1718187051464,-500.0,0.00019799,2]
[329221777,1718187051476,-500.0,0.00019799,2]
[329221779,1718187051487,-1016.58,0.00019799,2]
[329221781,1718187051498,-500.0,0.00019799,2]
[329221783,1718187051512,-500.0,0.00019799,2]
[329221785,1718187051523,-1387.73,0.00019799,2]
[329221787,1718187051534,-500.0,0.00019799,2]
[329221789,1718187051549,-500.0,0.00019799,2]
[329221792,1718187051590,-713.65,0.00019799,2]
[329221794,1718187051602,-500.0,0.00019799,2]
[329221796,1718187051613,-500.0,0.00019799,2]
[329221798,1718187051625,-500.0,0.00019799,2]
[329221800,1718187051636,-500.0,0.00019799,2]
[329221802,1718187051647,-500.0,0.00019799,2]
[329221804,1718187051658,-500.0,0.00019799,2]
[329221806,1718187051669,-500.0,0.00019799,2]
[329221808,1718187051680,-571.5051689,0.00019799,2]
[329221810,1718187051691,-312.02822374,0.00019799,2]
[329221812,1718187051702,-500.0,0.00019799,2]
[329221814,1718187051713,-500.0,0.00019799,2]
[329221816,1718187051723,-500.0,0.00019799,2]
[329221818,1718187051734,-582.58,0.00019799,2]
[329221820,1718187051745,-500.0,0.00019799,2]
[329221822,1718187051756,-500.0,0.00019799,2]
[329221824,1718187051769,-500.0,0.00019799,2]
[329221826,1718187051780,-619.44,0.00019799,2]
[329221828,1718187051790,-500.0,0.00019799,2]
[329221830,1718187051822,-500.0,0.00019799,2]
[329221833,1718187051833,-500.0,0.00019799,2]
[329221835,1718187051844,-500.0,0.00019799,2]
[329221836,1718187051856,-500.0,0.00019799,2]
[329221837,1718187051866,-512.31314075,0.00019799,2]
[329221838,1718187051910,-788.33685925,0.00019799,2]
[329221839,1718187051922,-651.51,0.00019799,2]
[329221840,1718187051932,-500.0,0.00019799,2]
[329221841,1718187051944,-500.0,0.00019799,2]
[329221842,1718187051955,-616.95,0.00019799,2]
[329221843,1718187051966,-500.0,0.00019799,2]
[329221844,1718187051978,-500.0,0.00019799,2]
[329221845,1718187051988,-500.0,0.00019799,2]
[329221846,1718187051999,-572.52,0.00019799,2]
[329221847,1718187052011,-500.0,0.00019799,2]
[329221848,1718187052021,-500.0,0.00019799,2]
[329221849,1718187052032,-500.0,0.00019799,2]
[329221850,1718187052044,-1072.58,0.00019799,2]
[329221851,1718187052055,-500.0,0.00019799,2]
[329221852,1718187052067,-483.22814075,0.00019799,2]
[329221853,1718187052081,-16.77185925,0.00019799,2]
[329221854,1718187052093,-528.54,0.00019799,2]
[329221855,1718187052104,-1923.73,0.00019799,2]
[329221856,1718187052116,-500.0,0.00019799,2]
[329221857,1718187052127,-1548.5,0.00019799,2]
[329221858,1718187052138,-500.0,0.00019799,2]
[329221859,1718187052149,-1323.71,0.00019799,2]
[329221860,1718187052161,-500.0,0.00019799,2]
[329221861,1718187052173,-676.57,0.00019799,2]
[329221862,1718187052184,-1539.52,0.00019799,2]
[329221863,1718187052196,-500.0,0.00019799,2]
[329221864,1718187052208,-500.0,0.00019799,2]
[329221865,1718187052220,-500.0,0.00019799,2]
[329221866,1718187052231,-623.51,0.00019799,2]
[329221867,1718187052243,-500.0,0.00019799,2]
[329221868,1718187052254,-500.0,0.00019799,2]
[329221869,1718187052266,-3218.26,0.00019799,2]
[329221870,1718187052277,-970.17,0.00019799,2]
[329221871,1718187052288,-500.0,0.00019799,2]
[329221872,1718187052300,-500.0,0.00019799,2]
[329221873,1718187052311,-500.0,0.00019799,2]
[329221874,1718187052323,-873.42,0.00019799,2]
[329221875,1718187052335,-506.2,0.00019799,2]
[329221876,1718187052346,-540.75,0.00019799,2]
[329221877,1718187052357,-500.0,0.00019799,2]
[329221878,1718187052368,-183.51807548,0.00019799,2]
[329221879,1718187052379,-2568.5,0.00019799,2]
[329221880,1718187052390,-523.32,0.00019799,2]
[329221881,1718187052401,-1565.07,0.00019799,2]
[329221882,1718187052412,-1272.8,0.00019799,2]
[329221883,1718187052423,-500.0,0.00019799,2]
[329221884,1718187052433,-640.17886459,0.00019799,2]
[329221885,1718187052444,-1493.24,0.00019799,2]
[329221886,1718187052455,-150.0,0.00019827,2]
[329221887,1718187052465,-167.0,0.00019857,2]
[329221888,1718187052476,-649.72311182,0.00019862,2]
[329221889,1718187052487,-181.46353453,0.00019862,2]
[329221890,1718187052497,-1802.00480556,0.00019862,2]
[329221891,1718187052510,-525.40490644,0.00019862,2]
[329221892,1718187052521,-206.03170677,0.00019862,2]
[329221893,1718187052533,-500.0,0.00019863,2]
[329221894,1718187052545,-250.0,0.00019863,2]
[329221895,1718187052576,-1123.87,0.00019863,2]
[329221896,1718187052588,-500.0,0.00019863,2]
[329221897,1718187052599,-500.0,0.00019863,2]
[329221898,1718187052609,-358.90908916,0.00019863,2]
[329221899,1718187052620,-500.0,0.00019863,2]
[329221900,1718187052632,-615.69,0.00019863,2]
[329221901,1718187052644,-631.63455426,0.00019863,2]
[329221902,1718187052655,-500.0,0.00019863,2]
[329221903,1718187052666,-500.0,0.00019863,2]
[329221904,1718187052677,-500.0,0.00019863,2]
[329221905,1718187052688,-564.05,0.00019863,2]
[329221906,1718187052699,-480.54263301,0.00019863,2]
[329221907,1718187052709,-500.0,0.00019863,2]
[329221908,1718187052720,-500.0,0.00019863,2]
[329221909,1718187052731,-500.0,0.00019863,2]
[329221910,1718187052741,-500.0,0.00019863,2]
[329221911,1718187052752,-500.0,0.00019863,2]
[329221912,1718187052765,-500.0,0.00019863,2]
[329221913,1718187052775,-563.56,0.00019863,2]
[329221914,1718187052787,-500.0,0.00019863,2]
[329221915,1718187052798,-500.0,0.00019863,2]
[329221916,1718187052809,-519.07,0.0001987,2]
[329221917,1718187052821,-1500.0,0.00019894,2]
[329221918,1718187052832,-500.0,0.000199,2]
[329221919,1718187052843,-161.91560936,0.000199,2]
[329221920,1718187052854,-4974.2664,0.000199,2]
[329221921,1718187052865,-150.0,0.00019903,2]
[329221922,1718187052876,-553.07,0.00019935,2]
[329221923,1718187052888,-361.66335769,0.00019935,2]
[329221924,1718187052899,-500.0,0.00019935,2]
[329221925,1718187052910,-500.0,0.00019935,2]
[329221926,1718187052922,-1611.69,0.00019935,2]
[329221927,1718187052933,-632.28,0.00019935,2]
[329221928,1718187052945,-868.93,0.00019935,2]
[329221929,1718187052956,-500.0,0.00019935,2]
[329221930,1718187052967,-528.64,0.00019935,2]
[329221931,1718187052977,-883.1,0.00019935,2]
[329221932,1718187052988,-500.0,0.00019935,2]
[329221933,1718187053001,-500.0,0.00019935,2]
[329221934,1718187053013,-500.0,0.00019935,2]
[329221935,1718187053024,-500.0,0.00019935,2]
[329221936,1718187053034,-775.01,0.00019935,2]
[329221937,1718187053045,-248.82696899,0.00019935,2]
[329221938,1718187053056,-500.0,0.00019935,2]
[329221939,1718187053067,-500.0,0.00019935,2]
[329221940,1718187053078,-500.0,0.00019935,2]
[329221941,1718187053090,-500.0,0.00019935,2]
[329221942,1718187053102,-1482.55,0.00019935,2]
[329221943,1718187053113,-588.15,0.00019935,2]
[329221944,1718187053124,-834.47,0.00019935,2]
[329221945,1718187053134,-1084.31,0.00019935,2]
[329221946,1718187053145,-837.88,0.00019935,2]
[329221947,1718187053156,-823.62,0.00019935,2]
[329221948,1718187053168,-573.1,0.00019935,2]
[329221949,1718187053178,-1128.63,0.00019935,2]
[329221950,1718187053188,-500.0,0.00019935,2]
[329221951,1718187053198,-674.47,0.00019935,2]
[329221952,1718187053209,-500.0,0.00019935,2]
[329221957,1718187053468,-621.82,0.00019935,2]
[329221958,1718187053480,-739.01,0.00019935,2]
[329221959,1718187053491,-845.15,0.00019935,2]
[329221960,1718187053502,-1541.47,0.00019935,2]
[329221961,1718187053514,-500.0,0.00019935,2]
[329221962,1718187053525,-756.36,0.00019935,2]
[329221963,1718187053536,-500.0,0.00019935,2]
[329221964,1718187053551,-1566.19,0.00019935,2]
[329221966,1718187053584,-609.08,0.00019935,2]
[329221968,1718187053595,-1703.55,0.00019935,2]
[329221970,1718187053606,-500.0,0.00019935,2]
[329221972,1718187053616,-2896.96,0.00019935,2]
[329221975,1718187053629,-849.0,0.00019935,2]
[329221977,1718187053640,-500.0,0.00019935,2]
[329221979,1718187053651,-500.0,0.00019935,2]
[329221981,1718187053662,-500.0,0.00019935,2]
[329221983,1718187053673,-500.0,0.00019935,2]
[329221985,1718187053683,-500.0,0.00019935,2]
[329221987,1718187053693,-500.0,0.00019935,2]
[329221989,1718187053703,-500.0,0.00019935,2]
[329221991,1718187053714,-1066.46,0.00019935,2]
[329221993,1718187053724,-3736.27,0.00019935,2]
[329221995,1718187053735,-500.0,0.00019935,2]
[329221997,1718187053746,-500.0,0.00019935,2]
[329221999,1718187053757,-500.0,0.00019935,2]
[329222001,1718187053769,-500.0,0.00019935,2]
[329222003,1718187053779,-500.0,0.00019935,2]
[329222005,1718187053789,-500.0,0.00019936,2]
[329222007,1718187053800,-500.0,0.00019936,2]
[329222009,1718187053813,-500.0,0.00019936,2]
[329222010,1718187053824,-500.0,0.00019936,2]
[329222011,1718187053834,-500.0,0.00019936,2]
[329222013,1718187053845,-500.0,0.00019936,2]
[329222015,1718187053855,-500.0,0.00019936,2]
[329222016,1718187053865,-500.0,0.00019936,2]
[329222017,1718187053876,-1016.58,0.00019936,2]
[329222018,1718187053886,-500.0,0.00019936,2]
[329222019,1718187053896,-500.0,0.00019936,2]
[329222020,1718187053907,-1387.73,0.00019936,2]
[329222021,1718187053918,-500.0,0.00019936,2]
[329222022,1718187053929,-500.0,0.00019936,2]
[329222023,1718187053940,-713.65,0.00019936,2]
[329222024,1718187053950,-500.0,0.00019936,2]
[329222025,1718187053961,-500.0,0.00019936,2]
[329222026,1718187053971,-500.0,0.00019936,2]
[329222027,1718187053982,-500.0,0.00019936,2]
[329222028,1718187053992,-500.0,0.00019936,2]
[329222029,1718187054004,-500.0,0.00019936,2]
[329222030,1718187054015,-314.05096928,0.00019936,2]
[329222031,1718187054026,-500.0,0.00019936,2]
[329222032,1718187054037,-500.0,0.00019936,2]
[329222033,1718187054048,-582.58,0.00019936,2]
[329222034,1718187054060,-478.23695411,0.00019936,2]
[329222035,1718187054070,-500.0,0.00019936,2]
[329222036,1718187054081,-500.0,0.00019936,2]
[329222037,1718187054092,-619.44,0.00019936,2]
[329222038,1718187054102,-500.0,0.00019936,2]
[329222039,1718187054113,-500.0,0.00019936,2]
[329222040,1718187054124,-500.0,0.00019936,2]
[329222041,1718187054134,-500.0,0.00019936,2]
[329222042,1718187054145,-500.0,0.00019936,2]
[329222043,1718187054157,-1300.65,0.00019936,2]
[329222044,1718187054168,-651.51,0.00019936,2]
[329222045,1718187054179,-500.0,0.00019936,2]
[329222046,1718187054189,-500.0,0.00019936,2]
[329222047,1718187054200,-616.95,0.00019936,2]
[329222048,1718187054210,-500.0,0.00019936,2]
[329222049,1718187054221,-500.0,0.00019936,2]
[329222050,1718187054231,-500.0,0.00019936,2]
[329222051,1718187054242,-572.52,0.00019936,2]
[329222052,1718187054252,-500.0,0.00019936,2]
[329222053,1718187054264,-500.0,0.00019936,2]
[329222054,1718187054275,-500.0,0.00019936,2]
[329222055,1718187054286,-1072.58,0.00019936,2]
[329222056,1718187054297,-500.0,0.00019936,2]
[329222057,1718187054308,-500.0,0.00019936,2]
[329222058,1718187054320,-528.54,0.00019936,2]
[329222059,1718187054330,-1923.73,0.00019936,2]
[329222060,1718187054342,-500.0,0.00019936,2]
[329222061,1718187054352,-1548.5,0.00019936,2]
[329222062,1718187054363,-500.0,0.00019936,2]
[329222063,1718187054373,-1323.71,0.00019936,2]
[329222064,1718187054385,-500.0,0.00019936,2]
[329222065,1718187054396,-676.57,0.00019936,2]
[329222066,1718187054407,-1539.52,0.00019936,2]